bitfinex/quotes_ETHUSD_20250620
["timestamp","ask_amount","ask_price","bid_price","bid_amount"]
[1750427485407,7.327,2534.2,2533.8,3.94652307]
[1750427485602,7.327,2534.2,2533.8,3.94653658]
[1750427485841,7.327,2534.2,2533.9,3.94645432]
[1750427486059,7.327,2534.2,2534.0,3.94630495]
[1750427486357,21.26562758,2534.5,2533.5,2.176]
[1750427486532,7.32,2534.5,2533.5,2.176]
[1750427486732,7.32,2534.5,2533.6,3.94695295]
[1750427486932,1.26203483,2534.8,2533.5,2.176]
[1750427486933,1.26203483,2534.8,2533.5,2.21546591]
[1750427487258,3.94566426,2534.5,2533.5,2.176]
[1750427487462,7.313,2534.7,2534.1,3.94616092]
[1750427487633,1.48632082,2534.8,2533.6,0.03946225]
[1750427487970,1.48632082,2534.8,2534.0,0.7949]
[1750427488171,1.48632082,2534.8,2534.2,3.94599918]
[1750427488360,1.48632082,2534.8,2534.6,3.94539517]
[1750427488560,1.48632082,2534.8,2534.7,3.94524006]
[1750427489074,0.22428599,2534.8,2534.7,3.94524006]
[1750427489442,0.22428599,2534.8,2534.0,4.74113138]
[1750427489774,0.22428599,2534.8,2534.4,3.94563096]
[1750427489973,0.22428599,2534.8,2534.6,3.94532752]
[1750427490175,0.22428599,2534.8,2534.3,3.94586276]
[1750427490340,0.22428599,2534.8,2534.7,3.94524006]
[1750427490764,3.94371844,2535.7,2535.0,3.94467902]
[1750427490997,7.3,2535.5,2534.9,3.94490603]
[1750427491174,7.3,2535.5,2534.8,3.94508442]
[1750427491175,10.0,2535.4,2534.8,3.94508442]
[1750427491376,10.0,2535.4,2534.9,3.94485972]
[1750427491583,7.3,2535.5,2534.7,6.12118584]
[1750427491743,0.22450727,2535.4,2534.8,0.8297]
[1750427491944,10.22450727,2535.4,2535.2,3.94442906]
[1750427492306,10.22450727,2535.4,2534.9,3.94492879]
[1750427492463,0.22450727,2535.4,2535.3,3.94430639]
[1750427492805,0.22450727,2535.4,2535.3,6.12030639]
[1750427493456,11.22882971,2536.3,2535.3,6.15974414]
[1750427493657,0.22472635,2536.2,2535.9,3.94328116]
[1750427493902,0.22472635,2536.2,2535.3,2.176]
[1750427494047,0.22472635,2536.2,2535.5,3.94392846]
[1750427494252,0.22472635,2536.2,2535.9,0.7965]
[1750427494451,0.22472635,2536.2,2536.1,3.94306218]
[1750427494884,0.22472635,2536.2,2536.0,3.94313699]
[1750427495093,3.94236704,2536.6,2535.9,0.7965]
[1750427495094,3.94236704,2536.6,2536.1,3.94306218]
[1750427495397,10.0,2536.5,2535.9,2.9725]
[1750427495698,10.0,2536.6,2536.2,3.94279152]
[1750427496002,0.22494656,2536.5,2536.0,3.94317029]
[1750427496190,0.22494656,2536.5,2534.3,0.8228]
[1750427496191,10.0,2536.0,2534.3,0.8228]
[1750427496345,0.35591474,2535.9,2534.4,0.03945308]
[1750427496544,10.0,2535.8,2535.2,3.94432865]
[1750427496782,13.94360451,2535.8,2535.2,3.94432865]
[1750427497146,13.94360612,2535.8,2535.0,3.94473893]
[1750427497371,13.94360612,2535.8,2535.2,3.94438336]
[1750427497573,10.0,2535.8,2535.3,3.94428924]
[1750427497790,10.0,2535.8,2535.3,3.94420757]
[1750427497965,13.9435375,2535.8,2535.3,3.94420757]
[1750427498378,13.9435375,2535.8,2535.2,3.94438595]
[1750427498559,10.0,2535.8,2535.4,3.94413291]
[1750427498759,10.0,2535.8,2535.2,3.9444211]
[1750427498760,10.0,2535.8,2535.1,0.03944141]
[1750427498961,7.311,2536.1,2534.7,0.7609]
[1750427499194,3.94365126,2535.8,2535.2,3.94443706]
[1750427499500,10.0,2536.0,2535.3,3.98370931]
[1750427499648,13.94330132,2536.0,2535.4,3.94407229]
[1750427499989,10.0,2536.0,2535.6,3.94382831]
[1750427500164,13.94318523,2536.1,2535.5,3.94397882]
[1750427500371,10.0,2536.1,2535.6,3.94368489]
[1750427500553,2.175,2536.8,2535.7,0.03943407]
[1750427500761,3.9425484,2536.5,2535.5,3.94398199]
[1750427501093,10.35730786,2536.4,2535.9,3.9433259]
[1750427501399,2.175,2536.8,2535.9,3.94337316]
[1750427501550,3.94258223,2536.5,2536.0,3.9431746]
[1750427501754,14.29996084,2536.4,2535.9,3.94331278]
[1750427501983,13.94260992,2536.4,2535.9,3.94331278]
[1750427502169,13.94260992,2536.4,2535.4,0.809]
[1750427502170,3.94321766,2536.0,2535.4,0.809]
[1750427502378,3.94329683,2536.0,2535.5,3.94399354]
[1750427502576,3.94316574,2536.1,2535.5,3.94399526]
[1750427502774,10.0,2536.1,2535.6,3.94380661]
[1750427503097,10.0,2536.2,2535.4,4.75314227]
[1750427503298,7.277,2536.4,2535.7,3.94363303]
[1750427503500,14.30018276,2536.3,2535.8,3.94350525]
[1750427503710,0.35733166,2536.2,2535.8,3.94350525]
[1750427503878,4.30026596,2536.2,2535.7,3.94362744]
[1750427504077,3.94321766,2536.0,2535.3,6.11929363]
[1750427504381,3.94384997,2535.6,2535.0,0.7883]
[1750427504579,3.94453399,2535.2,2534.6,0.7755]
[1750427504822,17.269,2535.6,2534.8,3.94496933]
[1750427504992,3.9442072,2535.4,2534.9,3.94491248]
[1750427505570,21.2129055,2535.6,2535.0,3.94475111]
[1750427505571,3.94408065,2535.5,2535.0,3.94475111]
[1750427505814,3.94415886,2535.4,2534.9,3.94485477]
[1750427505970,3.94405801,2535.5,2535.0,3.94475224]
[1750427506176,3.94416457,2535.4,2535.0,3.94475224]
[1750427506596,3.94408369,2535.5,2535.0,3.94475899]
[1750427507583,3.94418397,2535.4,2534.9,3.94492879]
[1750427507790,3.94408155,2535.5,2535.0,3.94476254]
[1750427508489,21.21285566,2535.6,2535.0,3.94476254]
[1750427508693,3.94415099,2535.4,2534.9,3.94484735]
[1750427508911,3.94458966,2535.2,2534.3,0.8089]
[1750427509085,3.94458966,2535.2,2534.6,3.94525324]
[1750427509279,3.94458966,2535.2,2534.3,6.92973415]
[1750427509280,3.9448116,2535.0,2534.5,3.94543137]
[1750427509478,11.08312374,2535.4,2533.7,3.94674947]
[1750427509479,11.08312374,2534.6,2533.7,3.94674947]
[1750427509730,10.0,2534.4,2534.2,3.94591945]
[1750427509931,10.0,2534.5,2534.1,3.94609165]
[1750427510229,7.261,2535.1,2534.5,3.94547429]
[1750427510394,13.94511056,2534.8,2534.3,3.94578255]
[1750427510579,10.0,2534.8,2534.0,5.2088]
[1750427510780,13.94499298,2534.9,2534.3,3.94585523]
[1750427511057,0.35970146,2534.8,2534.4,3.94568214]
[1750427511235,10.0,2534.6,2534.1,3.94612069]
[1750427511398,0.35970146,2534.5,2534.2,3.94599038]
[1750427511977,13.94546507,2534.6,2534.1,3.94614469]
[1750427512380,10.0,2534.4,2534.0,4.4]
[1750427512616,3.94617418,2534.1,2534.0,4.4]
[1750427512788,13.24612374,2534.7,2534.0,4.4]
[1750427512988,7.274,2534.6,2534.0,4.4]
[1750427513219,10.0,2534.4,2534.0,8.34624513]
[1750427513417,10.0,2534.4,2534.0,4.4]
[1750427513723,10.0,2534.4,2534.1,3.94609446]
[1750427513927,13.94578019,2534.4,2534.0,4.4]
[1750427514219,13.94617418,2534.1,2534.0,4.4]
[1750427514422,21.21217418,2534.1,2534.0,4.4]
[1750427514604,17.266,2534.1,2534.0,4.4]
[1750427514803,21.21217418,2534.1,2534.0,4.4]
[1750427515007,17.62554619,2534.1,2534.0,4.3]
[1750427515206,10.0,2534.1,2534.0,8.24632991]
[1750427515522,7.265,2534.5,2534.4,3.94559327]
[1750427515703,7.265,2534.8,2534.4,3.94559327]
[1750427515907,0.35959486,2534.7,2534.5,3.94553331]
[1750427516132,7.264,2534.7,2534.4,3.94562234]
[1750427516334,10.06703142,2536.3,2534.1,0.03945755]
[1750427516508,2.164,2535.5,2534.5,3.94543393]
[1750427516708,10.0,2535.3,2535.0,3.94474969]
[1750427516947,7.26,2535.4,2534.9,3.94492316]
[1750427516948,11.20415735,2535.4,2534.9,3.94485019]
[1750427517256,7.48450071,2535.4,2535.1,3.94448363]
[1750427517410,7.48450071,2535.4,2534.4,2.164]
[1750427517765,0.22450071,2535.4,2534.5,3.94555139]
[1750427518054,17.47750071,2535.4,2535.3,3.94430639]
[1750427518206,0.22450071,2535.4,2535.3,3.94430639]
[1750427518541,2.164,2536.0,2535.0,3.94463322]
[1750427518542,10.0,2535.5,2535.0,3.94463322]
[1750427518920,10.0,2535.5,2535.2,3.94435988]
[1750427519243,10.0,2535.5,2535.2,3.94438258]
[1750427519623,10.0,2535.5,2535.1,3.94456707]
[1750427519834,0.35969859,2535.4,2534.6,0.7753]
[1750427520010,11.54404954,2535.3,2534.8,3.94501942]
[1750427520218,0.35969859,2535.2,2534.3,3.94586276]
[1750427520517,0.35969859,2535.2,2535.0,3.94474351]
[1750427520731,0.35969859,2535.2,2534.9,3.94485552]
[1750427520923,0.35996183,2535.1,2534.9,3.94485552]
[1750427521136,7.237,2535.3,2534.9,3.94485552]
[1750427521337,0.36001032,2535.2,2534.8,3.9450254]
[1750427522078,11.08312374,2535.6,2534.4,3.94567964]
[1750427522079,2.55901941,2536.2,2535.0,4.72198624]
[1750427522223,7.232,2535.9,2535.0,0.8273]
[1750427522428,0.36006629,2535.8,2535.2,3.94446197]
[1750427522648,4.30369239,2535.8,2535.3,3.944233]
[1750427522955,4.30381698,2535.7,2535.1,3.94449283]
[1750427523158,11.08312374,2536.0,2535.5,3.94389541]
[1750427523349,7.58403922,2535.9,2535.5,3.94389541]
[1750427523536,7.224,2535.9,2535.6,3.94372938]
[1750427523751,7.224,2535.9,2535.7,3.94354954]
[1750427523950,7.224,2535.9,2535.7,3.94354536]
[1750427524149,7.224,2535.9,2535.6,3.94376452]
[1750427524338,2.164,2536.5,2535.2,0.03943809]
[1750427524543,0.36003957,2536.4,2536.3,3.94275125]
[1750427524741,2.164,2537.0,2536.1,0.7513]
[1750427525039,0.58422965,2536.9,2536.8,3.9418349]
[1750427525261,0.22406248,2536.9,2536.8,3.9418349]
[1750427525572,0.22406248,2536.9,2536.7,3.94203827]
[1750427525782,0.22406248,2536.9,2536.6,3.9421839]
[1750427525938,0.22406248,2536.9,2536.2,3.94289371]
[1750427526140,21.30718622,2536.9,2535.4,0.8055]
[1750427526378,10.0,2536.4,2535.4,0.8055]
[1750427526681,10.22406248,2536.9,2536.3,0.8055]
[1750427526838,0.22406248,2536.9,2536.8,3.94197414]
[1750427527468,10.36002917,2537.2,2536.9,3.9416978]
[1750427527640,10.0,2537.2,2536.3,0.8055]
[1750427527841,10.0,2537.2,2536.9,3.94174256]
[1750427528254,10.0,2537.2,2536.3,0.8055]
[1750427528442,10.0,2537.2,2536.6,3.94228247]
[1750427528663,7.211,2537.2,2536.4,3.9425958]
[1750427528865,7.211,2537.2,2536.7,3.94200179]
[1750427529184,7.211,2537.2,2536.8,3.94197347]
[1750427529498,11.47098314,2537.8,2536.5,3.94244037]
[1750427529647,3.93908395,2538.7,2536.5,3.94244037]
[1750427529648,0.35993204,2537.6,2536.9,0.816]
[1750427529842,0.22406248,2537.6,2537.4,3.94093363]
[1750427531675,16.1033626,2537.9,2537.4,3.94104029]
[1750427531965,12.163,2537.9,2537.4,3.94104029]
[1750427532173,7.195,2537.9,2536.9,0.816]
[1750427532387,17.195,2537.9,2537.0,3.94166338]
[1750427532570,21.13531776,2537.9,2537.4,3.94094249]
[1750427532769,17.195,2537.9,2536.9,0.816]
[1750427532995,10.0,2537.8,2536.8,3.9418774]
[1750427533198,10.0,2537.8,2536.8,3.94197414]
[1750427533199,3.94112064,2537.4,2536.8,3.94197414]
[1750427533411,7.19,2537.3,2536.9,3.94181665]
[1750427533692,7.19,2537.3,2537.0,3.94165753]
[1750427533893,7.19,2537.3,2537.0,3.94163519]
[1750427534060,7.19,2537.3,2536.9,3.94169688]
[1750427534263,7.19,2537.3,2537.0,3.94160252]
[1750427534488,7.19,2537.3,2536.6,0.8295]
[1750427534805,1.95159502,2539.6,2536.6,0.8295]
[1750427534806,7.187,2537.4,2537.0,3.94153104]
[1750427534984,7.187,2537.4,2536.6,0.8295]
[1750427535379,7.187,2537.4,2537.0,3.94165566]
[1750427535585,7.187,2537.4,2536.6,0.8295]
[1750427535888,11.08312374,2537.3,2536.7,3.94212953]
[1750427536095,3.94135267,2537.2,2536.3,0.7745]
[1750427536301,7.187,2537.4,2536.3,0.7745]
[1750427536302,15.02503977,2536.9,2536.4,3.94253939]
[1750427536603,3.94200709,2536.8,2536.3,3.94264616]
[1750427536797,22.19601463,2536.9,2536.4,3.94250309]
[1750427537169,11.11283442,2536.9,2536.4,3.94250309]
[1750427537370,7.171,2536.9,2536.6,3.94218903]
[1750427537571,15.02423704,2537.4,2536.9,3.94178998]
[1750427537805,21.10529321,2537.3,2536.6,3.9422523]
[1750427537966,21.10529321,2537.3,2536.8,3.94186722]
[1750427538171,3.94146041,2537.2,2536.7,3.94208601]
[1750427538804,17.164,2537.3,2536.8,3.94194784]
[1750427539011,17.164,2537.3,2536.9,3.94180046]
[1750427539381,3.94174235,2537.0,2536.5,3.94242457]
[1750427539594,11.09784111,2536.9,2535.7,2.162]
[1750427539806,11.09784111,2536.9,2536.3,3.94262848]
[1750427540114,10.0,2537.1,2536.3,0.03942464]
[1750427540415,11.08312374,2537.5,2536.5,3.94235224]
[1750427540598,3.94142025,2537.2,2536.4,4.70807224]
[1750427540797,3.94166338,2537.0,2536.3,3.94267708]
[1750427541005,11.08312374,2536.7,2535.7,0.7655]
[1750427541200,7.159,2536.6,2536.1,3.9430507]
[1750427541403,7.159,2536.6,2535.7,0.8049318]
[1750427541697,7.159,2536.6,2536.2,3.94279164]
[1750427541901,7.159,2536.6,2536.3,3.94272889]
[1750427542487,7.159,2536.6,2536.3,3.94274601]
[1750427543713,10.0,2536.9,2536.2,3.94276862]
[1750427543919,3.94221836,2536.7,2536.2,3.94287115]
[1750427544414,7.153,2536.8,2536.4,3.94248872]
[1750427547028,7.136,2536.3,2535.9,3.94335471]
[1750427547224,11.08312374,2536.2,2534.9,7.9534]
[1750427547438,3.94314442,2536.1,2535.6,3.94378364]
[1750427547626,3.94314831,2536.1,2535.6,3.94378364]
[1750427547793,15.02610722,2536.2,2535.2,3.944432]
[1750427547985,7.126,2536.5,2536.0,3.94313672]
[1750427548190,10.0,2536.4,2536.0,3.94313672]
[1750427548427,10.0,2536.4,2536.1,3.94305776]
[1750427548628,7.126,2536.5,2536.1,3.94305776]
[1750427548629,10.0,2536.5,2536.1,3.94305776]
[1750427548827,7.124,2536.4,2535.0,0.7818]
[1750427548990,11.08312374,2536.3,2535.1,2.098]
[1750427549194,2.098,2536.8,2535.3,0.7818]
[1750427549427,7.12,2536.6,2536.1,3.94306218]
[1750427549627,7.123,2537.1,2536.8,3.94182302]
[1750427549838,7.123,2537.2,2536.4,3.9425958]
[1750427549996,7.123,2537.2,2536.2,0.03942595]
[1750427549997,7.122,2537.3,2537.0,3.94166113]
[1750427550199,2.098,2537.5,2537.2,3.94133837]
[1750427550424,2.098,2537.5,2537.1,3.94142924]
[1750427550425,9.222,2537.5,2537.1,3.94142924]
[1750427550931,10.0,2537.4,2537.0,3.94158631]
[1750427551131,13.94112174,2537.4,2536.9,3.94174373]
[1750427551335,10.0,2537.4,2537.0,3.94166233]
[1750427551638,13.16297219,2537.5,2537.0,3.94157557]
[1750427551639,0.36090538,2537.3,2537.0,3.94157557]
[1750427551830,13.16290485,2537.5,2537.0,3.94157557]
[1750427552019,10.36090541,2537.4,2537.0,3.94157557]
[1750427552344,0.36090541,2537.3,2537.0,3.94157557]
[1750427552538,10.0,2537.6,2536.6,3.94228494]
[1750427552848,10.0,2537.4,2537.0,3.9415885]
[1750427553146,2.098,2538.1,2537.1,0.84121533]
[1750427553342,7.33262578,2538.0,2537.7,3.94050471]
[1750427553646,13.40861432,2538.4,2537.7,3.94050471]
[1750427553647,0.36104567,2537.9,2537.8,3.94042083]
[1750427553806,0.36104567,2537.9,2537.0,6.03965053]
[1750427553807,0.36110292,2537.9,2536.3,3.94272461]
[1750427554005,3.94069797,2537.7,2536.4,4.6958958]
[1750427554201,0.36105424,2537.6,2536.5,0.67938958]
[1750427554407,7.52805424,2537.5,2536.5,0.67938958]
[1750427554638,7.167,2537.5,2537.0,3.94159527]
[1750427554812,0.36133256,2537.4,2536.9,3.94166842]
[1750427555011,0.36131064,2537.3,2537.0,3.94166338]
[1750427555261,0.3613248,2537.2,2536.4,2.8513]
[1750427555554,7.163,2538.0,2537.1,3.94150802]
[1750427555763,0.36137266,2537.9,2537.6,3.94070379]
[1750427555906,0.36137782,2537.8,2537.5,3.94084882]
[1750427556100,7.163,2538.0,2537.5,3.94084882]
[1750427556306,0.36138559,2537.9,2537.1,3.94138265]
[1750427556533,0.36138559,2537.8,2537.4,3.94096952]
[1750427556718,0.36138559,2537.8,2537.0,2.9302]
[1750427556719,0.36138559,2537.7,2537.2,3.94127813]
[1750427556935,0.36138559,2537.6,2537.4,3.94101732]
[1750427557131,11.10314071,2538.0,2537.0,2.9302]
[1750427557334,0.36127039,2537.9,2537.0,2.9302]
[1750427557505,0.36127039,2537.8,2537.4,3.94093915]
[1750427557709,0.36127039,2537.8,2537.0,0.8322]
[1750427557710,0.36127039,2537.7,2537.2,3.94123044]
[1750427557936,0.36127039,2537.6,2537.3,3.94111721]
[1750427558241,3.94034406,2537.9,2537.4,3.94096366]
[1750427558429,4.30159854,2537.8,2537.3,3.94111479]
[1750427558630,0.36117964,2537.7,2537.4,3.94096455]
[1750427558848,0.36117964,2537.6,2537.4,3.94096455]
[1750427559044,3.94032454,2537.9,2537.4,3.94096455]
[1750427559230,0.36118379,2537.8,2537.4,3.94096455]
[1750427559432,0.36118379,2537.7,2537.4,3.94096455]
[1750427559764,0.36118379,2537.6,2537.0,0.8322]
[1750427559946,11.08312374,2537.3,2536.7,0.7768]
[1750427560144,0.36113477,2537.2,2536.9,3.94180581]
[1750427560346,15.02433195,2537.3,2536.8,3.94189063]
[1750427560669,0.36121501,2537.2,2536.8,3.9418911]
[1750427560866,0.36121501,2537.1,2536.8,3.9418911]
[1750427561162,0.36128259,2537.0,2536.7,3.94209823]
[1750427561381,7.134,2537.1,2536.7,3.94209823]
[1750427561740,0.36127623,2537.0,2536.8,3.94190582]
[1750427561946,0.36126969,2536.9,2536.4,3.9425958]
[1750427562142,11.07554652,2537.1,2536.6,3.94220232]
[1750427562341,11.07554652,2537.1,2536.7,3.9420909]
[1750427562342,0.361276,2537.0,2536.7,3.9420909]
[1750427562544,0.36127592,2536.9,2536.7,3.9420909]
[1750427562782,11.07551167,2537.1,2536.6,3.94219942]
[1750427562940,4.30298326,2537.0,2536.5,3.94236265]
[1750427563145,0.36126792,2536.9,2536.3,4.72701693]
[1750427563381,0.36126792,2536.8,2536.5,3.94229192]
[1750427563579,0.36126792,2536.7,2536.5,3.94229192]
[1750427563898,0.36128054,2536.6,2536.2,3.94279152]
[1750427564076,15.02502753,2536.9,2536.2,3.9428351]
[1750427564263,7.119,2536.7,2536.2,3.94283538]
[1750427564440,0.36127998,2536.6,2535.6,4.75421629]
[1750427564646,0.36127998,2536.5,2536.2,3.94284102]
[1750427564953,0.36127998,2536.4,2536.2,3.94284102]
[1750427565291,0.36124208,2536.3,2536.2,3.94284102]
[1750427565855,0.36124208,2536.3,2536.1,3.94299819]
[1750427566074,3.94229623,2536.6,2536.2,3.94289593]
[1750427566306,7.119,2536.7,2535.6,3.94383972]
[1750427566307,15.38687855,2536.5,2535.6,3.94383972]
[1750427566473,15.38687855,2536.5,2535.5,2.7416528]
[1750427566474,0.3611835,2536.4,2535.7,3.94360975]
[1750427566679,7.46714646,2536.3,2535.6,3.94383972]
[1750427566982,4.30407997,2536.2,2535.8,3.94352203]
[1750427567197,3.94336596,2536.0,2535.5,6.68550174]
[1750427567402,4.30449946,2535.9,2535.5,6.68561122]
[1750427567716,15.02618868,2536.1,2535.5,2.7416528]
[1750427567717,3.94368615,2535.7,2535.5,2.7416528]
[1750427567916,0.36112468,2535.6,2535.5,2.7416528]
[1750427569035,0.36112468,2535.6,2535.5,6.68564806]
[1750427569179,0.36112468,2535.6,2535.5,2.7416528]
[1750427569382,0.36112468,2535.6,2535.5,6.68564806]
[1750427569582,7.098,2535.7,2535.5,7.74853759]
[1750427569902,0.36045511,2535.6,2535.5,2.7416528]
[1750427570110,0.36043118,2535.6,2535.5,2.7416528]
[1750427570781,10.0,2536.4,2535.6,3.94380929]
[1750427570992,0.36051451,2536.3,2536.0,3.94316766]
[1750427571189,0.36051451,2536.2,2535.8,3.94340681]
[1750427571414,11.39969526,2536.1,2535.5,2.7416528]
[1750427571613,11.0391634,2536.1,2535.6,3.94375739]
[1750427571821,0.36053613,2536.0,2535.6,3.94375739]
[1750427571988,0.36053613,2536.0,2535.6,3.94370024]
[1750427571989,11.08312374,2536.0,2535.6,3.94370024]
[1750427572192,7.092,2536.0,2535.5,6.68563149]
[1750427572505,7.092,2536.0,2535.5,2.7416528]
[1750427572709,11.03530193,2536.0,2535.6,3.94381594]
[1750427572912,7.092,2536.0,2535.6,3.94381594]
[1750427573619,11.03533161,2536.0,2535.6,3.94383876]
[1750427573836,7.44535969,2535.9,2535.6,3.94383876]
[1750427574038,7.085,2535.9,2535.6,3.94383876]
[1750427574657,7.083,2535.8,2535.7,3.94368418]
[1750427574834,2.063,2536.3,2535.6,0.7947]
[1750427575006,9.14,2536.3,2535.6,4.77797664]
[1750427575206,9.14,2536.3,2535.9,3.94330222]
[1750427575410,9.14,2536.3,2536.0,3.94321344]
[1750427575634,7.078,2536.3,2536.1,3.94298849]
[1750427575842,7.075,2536.5,2536.2,3.94275759]
[1750427576037,7.075,2536.5,2536.3,3.9427111]
[1750427576241,7.075,2536.5,2536.2,3.94275759]
[1750427576442,10.0,2536.6,2536.3,3.94273059]
[1750427576642,17.072,2536.6,2536.2,3.94283858]
[1750427576842,3.94252948,2536.5,2536.0,3.94319993]
[1750427577044,17.072,2536.6,2536.2,3.94277644]
[1750427577236,17.072,2536.6,2535.8,3.94352866]
[1750427577237,17.072,2536.6,2536.3,3.94274306]
[1750427577617,9.467,2536.9,2535.8,3.94352866]
[1750427577818,17.43232977,2536.8,2536.2,0.7708]
[1750427578028,0.36032789,2536.7,2535.8,0.7708]
[1750427578328,21.08312374,2536.6,2535.8,0.7708]
[1750427578532,11.08312374,2536.2,2535.6,3.94370587]
[1750427578730,11.01313121,2536.1,2535.6,3.9438363]
[1750427578920,7.07,2536.1,2535.5,6.68564717]
[1750427579117,7.069,2536.0,2535.6,3.9438068]
[1750427579332,3.94347177,2535.9,2535.5,2.7416528]
[1750427579650,15.02672463,2535.8,2535.5,2.7416528]
[1750427579819,3.94383972,2535.6,2535.5,2.7416528]
[1750427580351,6.00783972,2535.6,2535.5,2.7416528]
[1750427580553,2.064,2535.6,2535.5,2.7416528]
[1750427580846,9.128,2535.6,2535.5,2.7416528]
[1750427581009,13.07183972,2535.6,2535.5,2.7416528]
[1750427581419,3.94491065,2535.0,2534.2,0.7818]
[1750427581621,11.08312374,2534.6,2534.1,3.94605932]
[1750427581836,7.063,2534.6,2534.2,3.94591579]
[1750427582035,7.063,2534.6,2534.2,3.94594282]
[1750427582243,7.063,2534.6,2534.2,3.9459349]
[1750427582416,10.0,2535.1,2534.0,4.3]
[1750427582616,11.08312374,2534.7,2534.0,4.3]
[1750427582821,11.02147763,2534.6,2534.0,4.3]
[1750427583044,11.02147763,2534.6,2534.0,8.24624895]
[1750427583247,7.076,2534.6,2534.1,3.94617418]
[1750427583448,11.08312374,2534.2,2534.0,4.3]
[1750427583648,7.083,2534.1,2534.0,4.3]
[1750427584169,7.083,2534.1,2533.1,0.7818]
[1750427584170,11.02917418,2534.1,2533.4,3.94718483]
[1750427584334,11.08312374,2534.2,2533.3,3.94742036]
[1750427584532,11.08312374,2534.2,2533.8,3.94663363]
[1750427584766,7.081,2534.1,2533.8,3.94656409]
[1750427584946,11.08312374,2534.2,2533.3,3.94742036]
[1750427585158,7.081,2534.1,2533.8,3.94653944]
[1750427585471,13.94569992,2534.5,2533.4,4.34189553]
[1750427585472,10.0,2534.5,2533.4,4.34189553]
[1750427585674,10.0,2534.5,2533.9,3.94637226]
[1750427585675,10.0,2534.3,2533.9,3.94637226]
[1750427585977,10.0,2534.3,2534.0,3.94631869]
[1750427586130,10.0,2534.3,2533.5,0.7818]
[1750427586347,11.08312374,2534.2,2533.8,3.94664084]
[1750427586546,7.08,2534.1,2533.5,0.7818]
[1750427586899,7.08,2534.1,2533.8,3.946536]
[1750427587196,7.08,2534.1,2533.9,3.94646197]
[1750427587397,7.08,2534.1,2533.5,0.7818]
[1750427587543,10.0,2534.3,2533.9,3.94638566]
[1750427587744,7.07,2534.2,2534.0,3.94625869]
[1750427588250,7.07,2534.2,2533.7,3.9467522]
[1750427588455,7.07,2534.2,2533.8,3.94654643]
[1750427588643,18.15312374,2534.2,2533.8,3.94662903]
[1750427588844,18.15312374,2534.2,2533.5,0.7818]
[1750427589164,7.068,2534.1,2534.0,3.94622749]
[1750427589794,19.05312374,2534.9,2533.7,3.94676332]
[1750427589972,11.08312374,2535.2,2534.7,3.94524006]
[1750427590278,11.08312374,2535.2,2534.9,3.94482336]
[1750427590279,7.064,2535.1,2534.9,3.94482336]
[1750427590478,7.064,2535.1,2534.3,3.94586276]
[1750427590679,10.0,2535.0,2534.7,3.94523924]
[1750427590881,10.0,2535.0,2534.1,3.94605838]
[1750427591180,10.0,2535.1,2534.9,3.94492879]
[1750427591382,7.062,2535.0,2534.6,3.94530527]
[1750427591750,7.062,2535.0,2534.7,3.94522805]
[1750427592182,10.0,2535.1,2534.0,4.75782562]
[1750427592386,7.062,2535.0,2534.8,3.94508063]
[1750427592597,19.43868084,2535.5,2534.4,0.7906]
[1750427592598,2.065,2535.5,2534.4,0.7906]
[1750427592770,7.41641919,2535.4,2535.2,3.94439106]
[1750427593098,7.41641919,2535.4,2534.8,3.94508092]
[1750427593099,21.44179475,2535.3,2534.8,3.94495854]
[1750427593248,21.08312374,2535.3,2534.9,3.94483806]
[1750427593443,21.08312374,2535.3,2534.6,3.94538]
[1750427593651,10.0,2535.3,2535.2,3.94446197]
[1750427593894,2.065,2535.5,2534.9,3.9449118]
[1750427594099,10.0,2535.5,2535.4,3.94415082]
[1750427594395,2.065,2535.7,2535.6,3.94383972]
[1750427594563,9.122,2535.7,2535.6,3.94383972]
[1750427594896,3.9428746,2536.3,2535.6,3.94383972]
[1750427594897,11.08312374,2536.0,2535.6,3.94383972]
[1750427595106,17.44398321,2535.9,2535.5,3.94398829]
[1750427595389,17.085,2535.9,2535.5,3.94398829]
[1750427595686,17.085,2535.9,2535.1,3.94461756]
[1750427595687,10.0,2535.9,2535.1,3.94461756]
[1750427595988,10.0,2535.9,2535.1,3.94459884]
[1750427596168,7.46821596,2535.8,2535.5,3.94389278]
[1750427596398,7.109,2535.8,2535.5,3.94389278]
[1750427596759,7.109,2535.8,2535.0,0.7906]
[1750427596987,11.41181448,2535.8,2535.3,3.94417678]
[1750427597163,11.41181448,2535.8,2535.0,0.7906]
[1750427597164,0.35920846,2535.8,2535.5,3.94395336]
[1750427597491,7.104,2535.7,2535.4,3.94407829]
[1750427597784,7.104,2535.7,2535.6,3.94383972]
[1750427597988,7.104,2535.7,2535.4,3.94401523]
[1750427598191,7.098,2535.7,2535.4,3.94401523]
[1750427598352,7.098,2535.7,2535.5,3.94396919]
[1750427598786,7.098,2535.7,2535.0,0.7906]
[1750427598996,15.0276654,2535.2,2534.5,3.94549003]
[1750427599148,11.08312374,2534.6,2533.5,3.94710874]
[1750427599346,13.10557246,2534.5,2534.0,3.94625179]
[1750427599551,3.94572034,2534.4,2533.9,3.9464212]
[1750427599753,13.10564789,2534.5,2533.8,3.94654108]
[1750427600067,3.94617706,2534.1,2533.5,3.94707186]
[1750427600282,7.097,2534.0,2533.6,3.94683351]
[1750427600484,7.097,2534.0,2533.5,3.94707186]
[1750427600649,7.097,2534.0,2532.9,3.94790757]
[1750427600849,15.02978916,2533.8,2533.3,3.94733423]
[1750427601066,7.094,2533.7,2533.0,0.8037]
[1750427601266,7.094,2533.7,2533.3,3.94733945]
[1750427601490,7.094,2533.7,2533.3,3.94742036]
[1750427601808,7.094,2533.7,2533.0,0.8037]
[1750427602101,11.0408686,2533.7,2533.1,3.94773202]
[1750427602398,11.0408686,2533.7,2533.2,3.94754568]
[1750427602690,11.0408686,2533.7,2533.0,4.75153876]
[1750427602691,3.94698108,2533.6,2533.1,3.94767528]
[1750427602994,10.0,2533.9,2532.8,3.94819962]
[1750427603196,10.0,2533.9,2533.0,0.8091]
[1750427603353,7.087,2533.9,2533.0,0.8091]
[1750427603555,11.03358949,2533.9,2533.3,3.94729258]
[1750427603756,11.03358949,2533.9,2533.4,3.94724406]